Cogmind - Beta 13 @@@ ROGUE MODE // 2024.04.11 @ 15:11:00 Player: BVrutally Odd Result: Destroyed by X-72 Disruptor with Improved Arc Projector Performance ------------- Evolutions (5) 2500 Regions Visited (16) 3200 Robots Destroyed (140) 700 Value Destroyed (4884) 4884 Prototype IDs (47) 940 Alien Tech Used (0) 0 Bonus (2400) 2400 TOTAL SCORE: 14624 Bonus ------- Entered DSFs 500 Aligned with FarCom 300 Met Data Miner 300 Acquired ECA 300 Met Warlord at Base 500 MAIN.C Attacked Warlord 500 Cogmind --------- Core Integrity 0/1000 Matter 300/300 Energy 89/100 System Corruption 15% Temperature Cool (21) Movement Core (1350) Ox26 Location -5/Warlord Parts ------- > --- POWER (1) -------- (None) > --- PROPULSION (5) --- (None) > --- UTILITY (7) ------ Huge Storage Unit > --- WEAPON (4) ------- (None) > --- INVENTORY (25) --- Vortex Chain Reactor Coolant Injector Advanced Sensor Array 0b10 Decoder Chip [Generic] 0b10 Alert Chip Hacking Suite Improved Hacking Suite System Mapper Advanced System Shield Long-range Tractor Beam Mapping Drone Bay (3/3) Mapping Drone Bay (3/3) Beamcaster Beamcaster Vortex Cannon (26) Advanced EMP Blaster Powered Hammer Katana Peak State ------------ > --- POWER ------------ Antimatter Reactor > --- PROPULSION ------- Improved Medium Treads Heavy Treads Heavy Treads > --- UTILITY ---------- Advanced Cooling System Huge Storage Unit Experimental Core Analyzer Improved Weapon Cycler Hardened Medium Armor Plating Advanced Shield Generator Makeshift System Shield > --- WEAPON ----------- Vortex Rail Vortex Rail Hypervelocity Coil Gun RU-N14's Throwing Claymores v3 > --- INVENTORY -------- Light Angular Momentum Engine Vortex Chain Reactor Improved Medium Treads Improved Medium Treads Improved Medium Treads Improved Medium Treads Coolant Injector Advanced Sensor Array 0b10 Alert Chip Layered Heavy Armor Plating Hacking Suite Improved Hacking Suite System Mapper Advanced System Shield Long-range Tractor Beam Advanced Drone Bay Beamcaster Beamcaster Vortex Cannon Advanced EMP Blaster Powered Hammer Katana [Rating: 118] Favorites ----------- Power Fission Core Engine Ion Engine Power Core Fission Core Reactor Antimatter Reactor Propulsion Improved Medium Treads Treads Improved Medium Treads Leg Improved Carbon-fiber Leg Wheel Wheel Hover Unit Aerolev Unit Utility Huge Storage Unit Device Improved Weapon Cycler Storage Huge Storage Unit Processor Advanced Signal Interpreter Hackware Hacking Suite Protection Improved Medium Armor Plating Weapon Gauss Rifle Energy Gun Wave Gun Energy Cannon Vortex Cannon Ballistic Gun Gauss Rifle Ballistic Cannon Magnetic Acceleration Cannon Launcher Advanced EMP Blaster Special Weapon RU-N14's Throwing Claymores v3 Slashing Weapon Katana Piercing Weapon Spear Build | -11 -10 -10 -10 -9 -8 -7 -7 -6 -6 -6 -6 -5 -5 -5 -5 -5 ------- Run | Yrd Mat Min Exi Min Mat Fac DSF Fac Low Low Dat Pro Fac Upp Upp War Slots Evolved 10 | . . . . . 4 2 . 2 . . . . 2 . . . Power . | . . . . . . . . . . . . . . . . . Propulsion 3 | . . . . . 2 . . . . . . . 1 . . . Utility 5 | . . . . . 2 . . 2 . . . . 1 . . . Weapon 2 | . . . . . . 2 . . . . . . . . . . Parts Attached 233 | 7 6 . 2 8 58 13 27 15 12 4 . 11 18 15 10 27 Power 11 | 1 1 . . 1 2 . 2 . . . . . . . 1 3 Engine 7 | 1 1 . . 1 1 . . . . . . . . . 1 2 Core 3 | . . . . . 1 . 2 . . . . . . . . . Reactor 1 | . . . . . . . . . . . . . . . . 1 Propulsion 57 | 3 1 . . 2 26 2 8 5 . . . . 4 . . 6 Treads 34 | 2 . . . 1 16 . 1 4 . . . . 4 . . 6 Leg 6 | . . . . . 1 . 4 1 . . . . . . . . Wheel 16 | 1 1 . . 1 8 2 3 . . . . . . . . . Hover 1 | . . . . . 1 . . . . . . . . . . . Flight . | . . . . . . . . . . . . . . . . . Utility 87 | 1 2 . 2 4 10 2 8 6 10 . . 7 10 12 4 9 Device 44 | . 1 . 2 3 1 1 2 4 6 . . 4 3 9 2 6 Storage 3 | 1 1 . . . . . 1 . . . . . . . . . Processor 4 | . . . . . . . . 1 . . . . . . 2 1 Hackware 5 | . . . . . . . . . . . . . 5 . . . Protection 31 | . . . . 1 9 1 5 1 4 . . 3 2 3 . 2 Artifact . | . . . . . . . . . . . . . . . . . Weapon 78 | 2 2 . . 1 20 9 9 4 2 4 . 4 4 3 5 9 Energy Gun 7 | . . . . . . . 2 . . . . . . . 2 3 Energy Cannon 1 | . . . . . . . . . . . . . . . . 1 Ballistic Gun 41 | 2 2 . . 1 9 8 1 2 2 1 . 2 2 3 2 4 Ballistic Cannon 13 | . . . . . 3 . 5 2 . 1 . 1 1 . . . Launcher 5 | . . . . . 1 . . . . 2 . 1 . . 1 . Special Weapon 1 | . . . . . . . . . . . . . . . . 1 Impact Weapon . | . . . . . . . . . . . . . . . . . Slashing Weapon 5 | . . . . . 3 1 . . . . . . 1 . . . Piercing Weapon 5 | . . . . . 4 . 1 . . . . . . . . . Special Melee Weapon . | . . . . . . . . . . . . . . . . . Unidentified Prototypes 12 | . . . . 1 3 . . . . . . . 1 . . 7 Parts Lost 49 | . 1 . . . 11 1 11 1 1 . . . . 3 1 19 Power 5 | . 1 . . . 1 . 1 . . . . . . . 1 1 Propulsion 18 | . . . . . 7 . 4 . . . . . . . . 7 Utility 15 | . . . . . 3 . 2 . 1 . . . . 2 . 7 Weapon 11 | . . . . . . 1 4 1 . . . . . 1 . 4 Highest Loss Streak 17 | . 1 . . . 5 1 11 1 1 . . . . 3 1 17 To Critical Strikes 1 | . . . . . . . . . . . . . . . . 1 Average Slot Usage (%) 94 | . 97 100 100 99 90 97 88 96 99 100 100 100 93 87 88 85 Engine 4 | . 14 14 14 14 7 7 2 . . . . . . . 5 3 Core 3 | . . . . . 1 . 4 6 6 6 6 6 5 5 . . Treads 18 | . 16 14 14 14 23 15 2 1 26 26 26 26 25 17 17 16 Wheel 5 | . 11 14 14 14 12 15 13 18 . . . . . . . . Device 14 | . 11 14 14 13 8 9 8 16 18 20 20 19 5 17 14 12 Storage 7 | . 14 14 14 14 9 7 7 6 6 6 6 6 5 5 5 5 Processor 2 | . . . . . . . . . 6 6 6 6 . . 7 7 Hackware 3 | . . . . . . . . . . . . . 14 11 11 8 Protection 5 | . . . . . 10 10 10 13 7 6 6 6 8 4 . 3 Energy Gun 1 | . . . . . . . 5 3 . . . . . . 8 10 Ballistic Gun 18 | . 28 28 28 27 13 27 7 9 13 19 20 25 21 23 13 10 Ballistic Cannon 3 | . . . . . 1 . 14 13 12 5 6 . . . . . Naked Turns . | . . . . . . . . . . . . . . . . . Heaviest Build 146 | 12 92 92 92 94 113 109 125 134 129 122 120 124 124 126 117 146 Greatest Support 170 | 40 40 10 10 10 82 22 46 120 120 120 120 120 170 170 170 170 Greatest Overweight (x) 27 | . 9 9 9 9 9 5 11 6 1 1 . 1 . . . 27 Average Overweight (x) 2 | . 6 9 9 9 3 4 4 4 . . . . . . . . Largest Inventory Capacity 25 | 8 25 25 25 25 25 25 25 25 25 25 25 25 25 25 25 25 Average Capacity 24 | 7 22 25 25 25 25 25 25 25 25 25 25 25 25 25 25 25 Most Carried 25 | 6 25 25 25 25 25 25 25 25 25 25 25 25 25 25 25 25 Average Carried 23 | 3 12 24 24 24 23 24 20 24 24 25 25 24 24 23 24 24 Final Capacity 25 | 8 25 25 25 25 25 25 25 25 25 25 25 25 25 25 25 25 Final Carried 25 | 6 25 24 25 25 25 25 24 25 25 25 25 25 25 25 25 19 Class Distribution -------------------- 22% | Skirmisher 20% | Mutant 16% | Tank 14% | Hacker-Tank 8% | Scavenger-Mutant 7% | Hacker-Gunner 3% | Derelict-Gunner Dominant Class ---------------- Mutant | -10/Materials Mutant | -10/Mines Mutant | -10/Exiles Mutant | -9/Mines Scavenger-Mutant | -8/Materials Scavenger-Skirmisher | -7/Factory Skirmisher | -7/DSF Tank | -6/Factory Skirmisher | -6/Lower Caves Skirmisher | -6/Lower Caves Skirmisher | -6/Data Miner Skirmisher | -5/Proximity Caves Hacker-Tank | -5/Factory Hacker-Tank | -5/Upper Caves Hacker-Gunner | -5/Upper Caves Hacker-Gunner | -5/Warlord Resources | -11 -10 -10 -10 -9 -8 -7 -7 -6 -6 -6 -6 -5 -5 -5 -5 -5 ----------- Run | Yrd Mat Min Exi Min Mat Fac DSF Fac Low Low Dat Pro Fac Upp Upp War Matter Collected 6172 | 245 352 . . 304 1342 . 736 276 399 105 . 190 1108 593 302 220 Remotely 1809 | . . . . . . . 724 271 317 . . 38 325 134 . . Salvage Created 6223 | . 355 . . 305 1978 . 557 64 218 195 . 170 1644 464 273 . Parts 301 | . 30 . . 13 100 . 26 5 4 11 . 10 65 24 13 . Haulers Intercepted 9 | . 2 . . . 3 . 1 . . . . . 3 . . . Recyclers Shooed 2 | . . . . . . . . . . . . . 2 . . . Parts Field Recycled . | . . . . . . . . . . . . . . . . . Retrieved Matter . | . . . . . . . . . . . . . . . . . Parts Self-Destructed 35 | . . . . . . . . . 4 2 . 2 . 20 7 . Prevented 10 | . . . . . . . . . . 6 . 1 . 3 . . Kills | -11 -10 -10 -10 -9 -8 -7 -7 -6 -6 -6 -6 -5 -5 -5 -5 -5 ------- Run | Yrd Mat Min Exi Min Mat Fac DSF Fac Low Low Dat Pro Fac Upp Upp War Combat Hostiles Destroyed 107 | . 10 . . 7 31 . 11 2 5 7 . 5 18 6 5 . Melee 11 | . . . . . 11 . . . . . . . . . . . Guns 70 | . 10 . . 7 18 . 5 1 4 . . 1 17 6 1 . Cannons 11 | . . . . . 2 . 6 1 1 . . . 1 . . . AOE 15 | . . . . . . . . . . 7 . 4 . . 4 . Classes Destroyed 19 | . 6 . . 3 4 . 2 1 1 . . . 1 1 . . Worker 6 | . . . . . 2 . . . . . . . 4 . . . Builder 3 | . 1 . . 1 . . . . . . . . 1 . . . Hauler 9 | . 2 . . . 3 . 1 . . . . . 3 . . . Recycler 7 | . . . . 1 5 . . . . . . . 1 . . . Minesweeper 1 | . . . . . . . . . . . . . . 1 . . Mechanic 1 | . . . . . 1 . . . . . . . . . . . Operator 5 | . 1 . . . 3 . . . . . . . 1 . . . Watcher 5 | . 3 . . . . . . . . . . . 2 . . . Swarmer 31 | . 9 . . . 6 . . . . 7 . 4 1 . 4 . Grunt 33 | . 1 . . 2 16 . 5 . 3 . . . 5 1 . . Brawler 4 | . . . . 1 . . 1 . 1 . . . 1 . . . Duelist 1 | . . . . . . . . . . . . . 1 . . . Sentry 7 | . . . . . 6 . . . . . . . . 1 . . Specialist 3 | . . . . . . . 3 . . . . . . . . . Hunter 11 | . . . . . 3 . 1 . . . . 1 2 3 1 . Programmer 10 | . . . . . . . . 2 . . . . 8 . . . Heavy 1 | . . . . . . . 1 . . . . . . . . . Behemoth 2 | . . . . . . . . . 1 . . . . 1 . . Assembled 4 | . . . . 4 . . . . . . . . . . . . Best Kill Streak 6 | . 4 . . 3 6 . 5 1 4 4 . 4 6 2 4 . Combat Bots Only 5 | . 3 . . 3 3 . 5 1 4 4 . 4 5 2 4 . Max Kills in Single Turn 3 | . 2 . . 1 1 . 1 1 1 2 . 1 3 1 3 . Gunslinging 1 | . 1 . . . . . . . . . . . 1 . . . Exploded 3 | . . . . . . . . . . 2 . 1 . . 3 . Melee 1 | . . . . . 1 . . . . . . . . . . . Uniques/NPCs Destroyed . | . . . . . . . . . . . . . . . . . Combat | -11 -10 -10 -10 -9 -8 -7 -7 -6 -6 -6 -6 -5 -5 -5 -5 -5 -------- Run | Yrd Mat Min Exi Min Mat Fac DSF Fac Low Low Dat Pro Fac Upp Upp War Hostile Shots Fired 926 | . 62 . 2 15 247 . 151 10 32 5 . 17 92 60 17 216 Missed 249 | . 20 . . 5 52 . 40 4 13 2 . 5 30 15 5 58 Damage Taken 13073 | . 401 . 16 268 3022 265 1978 185 365 71 . 193 1289 696 200 4124 Core 1614 | . 70 . 16 28 120 . 262 38 43 30 . . 16 45 2 944 Absorbed by Shields 381 | . . . . . . . 87 50 87 . . . . 42 35 80 Reduced by Siege Mode 63 | . . . . . . . . . . . . . . 60 3 . Regen/Repaired (Parts) 86 | . . . . . . . . . . . . . . . . 86 Core Remaining (%) 76 | 100 . . . 54 78 . 62 . . . . 86 . . . . Volleys Fired 342 | . 46 . . 27 106 1 30 10 12 9 . 8 58 22 12 1 Largest 4 | . 2 . . 2 2 4 4 4 4 1 . 4 4 4 4 2 Hottest 224 | . 46 . . 46 96 97 175 175 157 36 . 122 142 129 224 90 Shots Fired 912 | . 92 . . 49 211 4 94 36 50 9 . 20 223 92 29 3 Gun 789 | . 92 . . 49 199 4 49 18 24 . . 16 217 92 26 3 Cannon 107 | . . . . . 12 . 45 18 26 . . . 6 . . . Launcher 16 | . . . . . . . . . . 9 . 4 . . 3 . Special . | . . . . . . . . . . . . . . . . . Kinetic 852 | . 92 . . 49 211 4 67 30 50 . . 16 223 92 18 . Thermal 41 | . . . . . . . 27 6 . . . . . . 8 . Explosive . | . . . . . . . . . . . . . . . . . Electromagnetic 16 | . . . . . . . . . . 9 . 4 . . 3 . Entropic 3 | . . . . . . . . . . . . . . . . 3 Robot Hit Streak 17 | . 5 . . 7 13 5 10 9 8 . . 10 16 17 13 1 Robot Miss Streak 6 | . 6 . . 4 5 2 5 2 3 1 . 2 4 2 1 1 Penetration Max 1 | . . . . . . . . . 1 . . . 1 . . . Secondary Targets 5 | . 2 . . . . . . . . . . . 3 . . . Max Gunslinging Chain 1 | . 1 . . . . . . . . . . . 1 . . . Shots Hit Robots 589 | . 45 . . 26 170 2 57 24 31 . . 11 139 68 15 1 Core Hits 268 | . 22 . . 15 75 . 24 5 12 10 . 8 63 21 12 1 Critical Kills 4 | . . . . . . . . . . . . . . 3 1 . Critical Parts Destroyed 14 | . . . . . . . . . . . . . 9 4 1 . Critical Strikes 29 | . . . . . 3 . 3 2 1 . . . 10 8 2 . Burn 2 | . . . . . . . 2 . . . . . . . . . Destroy 20 | . . . . . . . . . . . . . 10 8 2 . Blast 4 | . . . . . . . 1 2 1 . . . . . . . Sever 1 | . . . . . 1 . . . . . . . . . . . Impale 2 | . . . . . 2 . . . . . . . . . . . Melee Attacks 53 | . . . . . 43 4 . . . . . . 6 . . . Impact . | . . . . . . . . . . . . . . . . . Slashing 23 | . . . . . 13 4 . . . . . . 6 . . . Piercing 30 | . . . . . 30 . . . . . . . . . . . Sneak Attacks 9 | . . . . . 6 . . . . . . . 3 . . . Combat Hostiles . | . . . . . . . . . . . . . . . . . Follow-up Attacks 4 | . . . . . 4 . . . . . . . . . . . Damage Inflicted 13012 | . 609 . . 393 3313 32 1223 521 852 423 . 382 3676 1083 470 35 Guns 8898 | . 609 . . 393 1995 32 461 196 377 . . 167 3294 1083 256 35 Cannons 1833 | . . . . . 176 . 762 325 475 . . . 95 . . . Explosions 852 | . . . . . . . . . . 423 . 215 . . 214 . Melee 1367 | . . . . . 1140 . . . . . . . 227 . . . Ramming 62 | . . . . . 2 . . . . . . . 60 . . . Kinetic 10258 | . 609 . . 393 2171 32 944 477 852 . . 167 3389 1083 141 . Thermal 653 | . . . . . . . 279 44 . 97 . . . . 233 . Explosive . | . . . . . . . . . . . . . . . . . Electromagnetic 637 | . . . . . . . . . . 326 . 215 . . 96 . Impact . | . . . . . . . . . . . . . . . . . Slashing 476 | . . . . . 249 . . . . . . . 227 . . . Piercing 891 | . . . . . 891 . . . . . . . . . . . Entropic 35 | . . . . . . . . . . . . . . . . 35 Highest Corruption 15 | . . . . . . 4 4 2 2 . . . 8 8 8 15 Average Corruption 5 | . . . . . . 3 4 2 1 . . . 3 8 8 5 Corruption Purged 2 | . . . . . . . . . 2 . . . . . . . Corruption Blocked 19 | . . . . . . . . . . . . . . . . 19 Effects 190 | . . . . . . 4 11 2 23 . . . 22 68 43 17 Message Errors 46 | . . . . . . . 3 1 5 . . . 6 18 9 4 Matter Fused 44 | . . . . . . 1 5 1 5 . . . 5 13 12 2 Heat Flow Errors 21 | . . . . . . . . . 1 . . . 3 12 1 4 Energy Discharges 29 | . . . . . . 2 1 . 3 . . . . 11 8 4 Parts Rejected 1 | . . . . . . . . . . . . . . . . 1 Parts Fused 1 | . . . . . . . . . . . . . . . 1 . Data Loss (minor) 20 | . . . . . . 1 . . 6 . . . 1 6 6 . Data Loss (major) 8 | . . . . . . . . . 1 . . . 1 2 3 1 Misfires 15 | . . . . . . . . . 2 . . . 5 5 2 1 Alerts 2 | . . . . . . . . . . . . . 1 . 1 . Weapon Failures 3 | . . . . . . . 2 . . . . . . 1 . . Overload Shots . | . . . . . . . . . . . . . . . . . Overflow Damage 101 | . . . . . 30 . . 11 . 19 . . 41 . . . Projectiles 11 | . . . . . . . . 11 . . . . . . . . Explosions 19 | . . . . . . . . . . 19 . . . . . . Melee 71 | . . . . . 30 . . . . . . . 41 . . . Knockbacks 20 | . . . . . 5 . 9 2 1 . . . 3 . . . Impact 1 | . . . . . . . . . . . . . 1 . . . Kinetic 19 | . . . . . 5 . 9 2 1 . . . 2 . . . Secondary . | . . . . . . . . . . . . . . . . . Self-Inflicted Damage 59 | . . . . . . . . . . 26 . . . . 33 . Shots 4 | . . . . . . . . . . 1 . . . . 3 . Rammed 5 | . . . . . 2 . . . . . . . 3 . . . Targets Rammed 7 | . . . . . 2 . . . . . . . 5 . . . Kicked . | . . . . . . . . . . . . . . . . . Crushed 2 | . . . . . . . . . . . . . 2 . . . Highest Temperature 543 | . 6 . . 12 257 54 222 349 125 . . 36 543 194 151 155 Average Temperature 84 | . 4 . . 5 50 31 90 143 38 . . 18 139 68 40 62 Received Heat Transfer 2993 | . 54 . . 6 1395 . 732 . 102 . . . 180 27 . 497 Effects 14 | . . . . . 2 . . 4 . . . . 8 . . . Energy Bleed 3 | . . . . . . . . 2 . . . . 1 . . . Interference 9 | . . . . . 2 . . 2 . . . . 5 . . . Matter Decay 2 | . . . . . . . . . . . . . 2 . . . Siege Activations 9 | . . . . . . . . . . . . . . 8 1 . Total Turns 75 | . . . . . . . . . . . . . . 68 7 . Longest Duration 22 | . . . . . . . . . . . . . . 22 7 . Robots Corrupted . | . . . . . . . . . . . . . . . . . Combat Hostiles . | . . . . . . . . . . . . . . . . . Parts Fried 4 | . . . . . . . . . . 2 . 2 . . . . Impact Corruptions . | . . . . . . . . . . . . . . . . . Robots Melted . | . . . . . . . . . . . . . . . . . Combat Hostiles . | . . . . . . . . . . . . . . . . . Parts Melted 1 | . . . . . . . 1 . . . . . . . . . Heat Transferred 1386 | . . . . . . . 851 111 . 150 . . . . 274 . Parts Sabotaged . | . . . . . . . . . . . . . . . . . Parts Stolen . | . . . . . . . . . . . . . . . . . Parts Stripped . | . . . . . . . . . . . . . . . . . Power Chain Reactions 5 | . . . . . . . . . . 2 . 1 . . 2 . Alert | -11 -10 -10 -10 -9 -8 -7 -7 -6 -6 -6 -6 -5 -5 -5 -5 -5 ------- Run | Yrd Mat Min Exi Min Mat Fac DSF Fac Low Low Dat Pro Fac Upp Upp War Peak Influence 335 | . 272 5 . 70 335 136 205 111 . . . . 250 . . . Initial 130 | . . 5 . . 27 130 . 107 . . . . . . . . Average 60 | . 41 2 . 7 115 98 78 36 . . . . 66 . . . Maximum Alert Level 1 | . 1 . . . 1 . 1 . . . . . 1 . . . Low Security (%) 94 | 100 91 100 . 100 85 100 95 100 . . . . 97 . . . Level 1 5 | . 8 . . . 14 . 4 . . . . . 2 . . . Level 2 . | . . . . . . . . . . . . . . . . . Level 3 . | . . . . . . . . . . . . . . . . . Level 4 . | . . . . . . . . . . . . . . . . . Level 5 . | . . . . . . . . . . . . . . . . . High Security . | . . . . . . . . . . . . . . . . . Max Security . | . . . . . . . . . . . . . . . . . Sterilizations 1 | . . . . . . . 1 . . . . . . . . . Squads Dispatched 22 | . 2 . . . 6 . 2 4 . . . . 8 . . . Investigation 6 | . . . . . 2 . . 1 . . . . 3 . . . Extermination 6 | . . . . . . . . 2 . . . . 4 . . . Reinforcement 10 | . 2 . . . 4 . 2 1 . . . . 1 . . . Assault . | . . . . . . . . . . . . . . . . . Garrison . | . . . . . . . . . . . . . . . . . Intercept . | . . . . . . . . . . . . . . . . . Searches Triggered . | . . . . . . . . . . . . . . . . . Construction Impeded . | . . . . . . . . . . . . . . . . . Haulers Reinforced 1 | . . . . . . . . 1 . . . . . . . . Active Scanning Responses . | . . . . . . . . . . . . . . . . . Cargo Convoy Interrupts . | . . . . . . . . . . . . . . . . . Stealth | -11 -10 -10 -10 -9 -8 -7 -7 -6 -6 -6 -6 -5 -5 -5 -5 -5 --------- Run | Yrd Mat Min Exi Min Mat Fac DSF Fac Low Low Dat Pro Fac Upp Upp War Distress Signals 5 | . . . . . 4 . . . . . . . . . . 1 Communications Jammed . | . . . . . . . . . . . . . . . . . Distress Signals . | . . . . . . . . . . . . . . . . . Times Spotted 177 | . 22 . 1 8 43 . 10 2 5 3 . 3 26 7 5 42 Peak Tracking Total 22 | . 7 . 1 4 5 . 6 1 4 2 . 4 4 3 4 22 Tactical Retreats 8 | . . . . 1 1 . . . . . . . 1 1 . 4 Traps | -11 -10 -10 -10 -9 -8 -7 -7 -6 -6 -6 -6 -5 -5 -5 -5 -5 ------- Run | Yrd Mat Min Exi Min Mat Fac DSF Fac Low Low Dat Pro Fac Upp Upp War Traps Triggered 19 | . 1 . . . 4 5 2 4 . . . . 3 . . . Indirectly . | . . . . . . . . . . . . . . . . . Trap Hack Attempts . | . . . . . . . . . . . . . . . . . Triggered . | . . . . . . . . . . . . . . . . . Disarmed . | . . . . . . . . . . . . . . . . . Reprogrammed . | . . . . . . . . . . . . . . . . . Reused 1 | . . . . . . . . . . . . . . 1 . . Traps Extracted . | . . . . . . . . . . . . . . . . . Installed 3 | . . . . . . . . . . . . . . 3 . . Triggered 30 | . . . . . . . . . . . . . . 1 . 29 Most Traps Carried 3 | . . . . . . . . . . . . . . 3 . . Machines | -11 -10 -10 -10 -9 -8 -7 -7 -6 -6 -6 -6 -5 -5 -5 -5 -5 ---------- Run | Yrd Mat Min Exi Min Mat Fac DSF Fac Low Low Dat Pro Fac Upp Upp War Machines Disabled 8 | . 1 . . . . . 1 1 . . . . 5 . . . Max in Single Turn 2 | . 1 . . . . . 1 1 . . . . 2 . . . Garrison Access 1 | . . . . . 1 . . . . . . . . . . . Machines Repaired . | . . . . . . . . . . . . . . . . . Machines Dismantled . | . . . . . . . . . . . . . . . . . Machines Sabotaged . | . . . . . . . . . . . . . . . . . Overloaded Fab Kills . | . . . . . . . . . . . . . . . . . Hacking | -11 -10 -10 -10 -9 -8 -7 -7 -6 -6 -6 -6 -5 -5 -5 -5 -5 --------- Run | Yrd Mat Min Exi Min Mat Fac DSF Fac Low Low Dat Pro Fac Upp Upp War Machines Accessed 45 | . 7 . 1 . 7 4 . 4 1 1 4 . 7 . . 9 Terminals 25 | . 6 . . . 5 4 . 3 . 1 . . 6 . . . Fabricators 1 | . . . . . . . . . . . . . 1 . . . Repair Stations . | . . . . . . . . . . . . . . . . . Recycling Units 2 | . 1 . . . 1 . . . . . . . . . . . Scanalyzers 1 | . . . . . . . . 1 . . . . . . . . Garrison Access 1 | . . . . . 1 . . . . . . . . . . . Total Hacks 123 | . 17 . 1 . 14 9 . 12 1 1 29 . 28 . . 11 Successful 73 | . 4 . 1 . 4 2 . 6 1 1 29 . 14 . . 11 Failed 50 | . 13 . . . 10 7 . 6 . . . . 14 . . . Catastrophic 16 | . 4 . . . 3 3 . 3 . . . . 3 . . . Database Lockouts . | . . . . . . . . . . . . . . . . . Manual 39 | . 7 . 1 . 8 5 . . . . . . 16 . . 2 Terminals 63 | . 13 . . . 11 9 . 7 . 1 . . 22 . . . Fabricators 6 | . . . . . . . . . . . . . 6 . . . Repair Stations . | . . . . . . . . . . . . . . . . . Recycling Units 5 | . 4 . . . 1 . . . . . . . . . . . Scanalyzers 5 | . . . . . . . . 5 . . . . . . . . Garrison Access 2 | . . . . . 2 . . . . . . . . . . . Terminal Hacks 61 | . 4 . 1 . 2 2 . 2 1 1 29 . 8 . . 11 Record 22 | . . . . . . . . . . 1 11 . . . . 10 Part Schematic 12 | . . . . . . . . . . . 10 . 2 . . . Robot Schematic 5 | . . . . . . . . . . . 5 . . . . . Prototype ID Bank 4 | . . . . . . . . . . . 3 . 1 . . . Open Door 2 | . . . . . . . . . 1 . . . . . . 1 Open DSF 1 | . . . . . . 1 . . . . . . . . . . Level Access Points 1 | . . . . . 1 . . . . . . . . . . . Branch Access Points 1 | . . . . . . . . . . . . . 1 . . . Terminal Index 2 | . 1 . . . . 1 . . . . . . . . . . Garrison Index 1 | . . . . . . . . 1 . . . . . . . . Alert Level 1 | . . . . . . . . . . . . . 1 . . . Unreport Threat 3 | . 1 . . . . . . . . . . . 2 . . . Locate Traps 1 | . 1 . . . . . . . . . . . . . . . Recall Investigation 1 | . 1 . . . . . . . . . . . . . . . Hauler Manifests 2 | . . . . . 1 . . 1 . . . . . . . . Zone Layout 1 | . . . . . . . . . . . . . 1 . . . Derelict Proto ID Bank 1 | . . . 1 . . . . . . . . . . . . . Fabricator Hacks 6 | . . . . . . . . . . . . . 6 . . . Load Schematic 3 | . . . . . . . . . . . . . 3 . . . Build 3 | . . . . . . . . . . . . . 3 . . . Repair Station Hacks . | . . . . . . . . . . . . . . . . . Recycling Unit Hacks 1 | . . . . . 1 . . . . . . . . . . . Retrieve Components 1 | . . . . . 1 . . . . . . . . . . . Scanalyzer 4 | . . . . . . . . 4 . . . . . . . . Insert Component 2 | . . . . . . . . 2 . . . . . . . . Analyze 2 | . . . . . . . . 2 . . . . . . . . Garrison Access Hacks 1 | . . . . . 1 . . . . . . . . . . . Seal Access 1 | . . . . . 1 . . . . . . . . . . . Unauthorized Hacks . | . . . . . . . . . . . . . . . . . Terminals . | . . . . . . . . . . . . . . . . . Fabricators . | . . . . . . . . . . . . . . . . . Repair Stations . | . . . . . . . . . . . . . . . . . Recycling Units . | . . . . . . . . . . . . . . . . . Scanalyzers . | . . . . . . . . . . . . . . . . . Garrison Access . | . . . . . . . . . . . . . . . . . Data Cores Recovered . | . . . . . . . . . . . . . . . . . Used . | . . . . . . . . . . . . . . . . . Hacking Detections 26 | . 7 . . . 5 3 . 4 . . . . 7 . . . Full Trace Events 4 | . 1 . . . . . . 1 . . . . 2 . . . Feedback Events 1 | . . . . . . . . . . . . . 1 . . . Corruption 1 | . . . . . . . . . . . . . 1 . . . Feedback Blocked . | . . . . . . . . . . . . . . . . . Robot Schematics Acquired 5 | . . . . . . . . . . . 5 . . . . . Robots Built . | . . . . . . . . . . . . . . . . . Authchips . | . . . . . . . . . . . . . . . . . Time . | . . . . . . . . . . . . . . . . . Total Robot Build Rating . | . . . . . . . . . . . . . . . . . Part Schematics Acquired 14 | . . . . . . . . 2 . . 10 . 2 . . . Parts Built 4 | . . . . . . . . . . . . . 4 . . . Authchips 2 | . . . . . . . . . . . . . 2 . . . Time 83 | . . . . . . . . . . . . . 83 . . . Total Part Build Rating 18 | . . . . . . . . . . . . . 18 . . . Parts Repaired . | . . . . . . . . . . . . . . . . . Time . | . . . . . . . . . . . . . . . . . Parts Recycled . | . . . . . . . . . . . . . . . . . Recycled Matter . | . . . . . . . . . . . . . . . . . Retrieved Matter . | . . . . . . . . . . . . . . . . . Retrieved Components 9 | . . . . . 9 . . . . . . . . . . . Parts Scanalyzed 2 | . . . . . . . . 2 . . . . . . . . Part Schematics Acquired 2 | . . . . . . . . 2 . . . . . . . . Parts Damaged . | . . . . . . . . . . . . . . . . . Bothacking | -11 -10 -10 -10 -9 -8 -7 -7 -6 -6 -6 -6 -5 -5 -5 -5 -5 ------------ Run | Yrd Mat Min Exi Min Mat Fac DSF Fac Low Low Dat Pro Fac Upp Upp War Used RIF Installer . | . . . . . . . . . . . . . . . . . Robots Hacked . | . . . . . . . . . . . . . . . . . Non-combat . | . . . . . . . . . . . . . . . . . Combat . | . . . . . . . . . . . . . . . . . Robot Hacks Applied . | . . . . . . . . . . . . . . . . . Relay Couplers Released . | . . . . . . . . . . . . . . . . . Fabnet Peak Effective % . | . . . . . . . . . . . . . . . . . Robots Rewired . | . . . . . . . . . . . . . . . . . Allies Hacked . | . . . . . . . . . . . . . . . . . Hacks Repelled . | . . . . . . . . . . . . . . . . . Allies | -11 -10 -10 -10 -9 -8 -7 -7 -6 -6 -6 -6 -5 -5 -5 -5 -5 -------- Run | Yrd Mat Min Exi Min Mat Fac DSF Fac Low Low Dat Pro Fac Upp Upp War Total Allies 3 | . . 3 . . . . . . . . . . . . . . Largest Group 2 | . . 2 2 . . . . . . . . . . . . . Highest-Rated Group 43 | . . 43 43 . . . . . . . . . . . . . Highest-Rated Ally 31 | . . 31 31 . . . . . . . . . . . . . Total Orders . | . . . . . . . . . . . . . . . . . Ally Attacks . | . . . . . . . . . . . . . . . . . Total Damage . | . . . . . . . . . . . . . . . . . Kills . | . . . . . . . . . . . . . . . . . Allies Corrupted . | . . . . . . . . . . . . . . . . . Allies Melted 1 | . . . . . . . . . . . . . . . . 1 Intel | -11 -10 -10 -10 -9 -8 -7 -7 -6 -6 -6 -6 -5 -5 -5 -5 -5 ------- Run | Yrd Mat Min Exi Min Mat Fac DSF Fac Low Low Dat Pro Fac Upp Upp War Robot Analysis Total . | . . . . . . . . . . . . . . . . . Derelict Logs Recovered 13 | . . 1 . 1 . . . . 2 1 . 3 . 3 2 . Drone Launches . | . . . . . . . . . . . . . . . . . Drone Recoveries . | . . . . . . . . . . . . . . . . . Exploration | -11 -10 -10 -10 -9 -8 -7 -7 -6 -6 -6 -6 -5 -5 -5 -5 -5 ------------- Run | Yrd Mat Min Exi Min Mat Fac DSF Fac Low Low Dat Pro Fac Upp Upp War Turns Passed 21588 | 98 1479 675 515 1119 2465 514 322 1721 2112 1787 120 1752 1595 2418 1539 1357 Spaces Moved 10298 | 53 636 305 216 453 872 304 103 742 894 1080 76 869 690 1308 925 772 Core 2 | 1 . . . . . . . . . . . . . . . 1 Treads 6952 | 51 102 . . . 157 . . 29 894 1080 76 869 690 1308 925 771 Legs 16 | . . . . . . . 15 1 . . . . . . . . Wheels 3328 | 1 534 305 216 453 715 304 88 712 . . . . . . . . Hover . | . . . . . . . . . . . . . . . . . Flight . | . . . . . . . . . . . . . . . . . Fastest Speed 50 | 50 160 215 215 215 135 140 125 140 160 160 160 160 160 160 160 160 Average Speed 172 | 156 196 215 215 215 165 148 163 146 225 160 160 160 161 160 160 162 Slowest Speed 1400 | 160 215 215 215 215 240 155 330 345 240 240 160 240 162 160 160 1400 Overloaded Moves . | . . . . . . . . . . . . . . . . . Propulsion Burnouts . | . . . . . . . . . . . . . . . . . Robots Hopped . | . . . . . . . . . . . . . . . . . Cave-ins Triggered 1 | . . . . . . . . . . . . . . . . 1 Exploration Rate (%) 65 | 4 93 67 60 82 64 7 88 18 89 94 68 86 18 98 92 89 Regions Visited 16 Branch Regions 10 Pre-discovered Areas 4 | . . 1 . . . . . . 2 . 1 . . . . . Known Exits Taken 8 | . . . . . 1 1 . 1 1 1 1 1 1 . . . Unknown Exits Taken 7 | 1 1 1 1 1 . . . . . . . . . 1 1 . Scrap Searched 21 | . . . . 2 . . . . 8 1 . 4 . 3 3 . Spaces Dug 7 | . . . . . 1 4 . . . . . . 2 . . . Terrain Destroyed 68 | . . . . . 6 4 . 7 6 7 . 3 17 5 6 7 Melee 7 | . . . . . 1 4 . . . . . . 2 . . . Projectile 47 | . . . . . 5 . . 7 6 . . . 15 4 3 7 AOE 13 | . . . . . . . . . . 7 . 3 . . 3 . Terrain Rammed . | . . . . . . . . . . . . . . . . . Walls Destroyed . | . . . . . . . . . . . . . . . . . Machines Disabled . | . . . . . . . . . . . . . . . . . Actions | -11 -10 -10 -10 -9 -8 -7 -7 -6 -6 -6 -6 -5 -5 -5 -5 -5 --------- Run | Yrd Mat Min Exi Min Mat Fac DSF Fac Low Low Dat Pro Fac Upp Upp War Total 13418 | 65 776 326 267 563 1653 357 190 1353 956 1131 75 1216 1052 1590 970 878 Wait 2224 | . 63 19 47 63 522 33 7 545 27 39 . 318 260 224 16 41 Move 10282 | 52 635 304 215 452 871 303 102 741 893 1079 75 868 689 1307 924 772 Hop . | . . . . . . . . . . . . . . . . . Pick Up 110 | 5 22 1 1 2 20 2 10 9 5 . . 5 6 9 3 10 Fast Attach 82 | 7 1 . 2 4 22 5 5 9 2 . . . 4 3 1 17 Attach 46 | . 1 . . . 12 3 11 2 1 . . . 4 5 1 6 Detach 14 | 1 . . . 2 6 . 2 2 . . . . . . . 1 Swap 105 | . 4 . . 4 24 5 11 4 9 4 . 11 10 7 8 4 Drop 134 | . 4 2 2 9 31 1 6 15 7 . . 6 10 10 5 26 Fire 342 | . 46 . . 27 106 1 30 10 12 9 . 8 58 22 12 1 Melee 47 | . . . . . 37 4 . . . . . . 6 . . . Ram 1 | . . . . . 1 . . . . . . . . . . . Kick . | . . . . . . . . . . . . . . . . . Crush 6 | . . . . . 1 . . . . . . . 5 . . . Escape Stasis 22 | . . . . . . . 6 16 . . . . . . . . Rewire . | . . . . . . . . . . . . . . . . . Trap 3 | . . . . . . . . . . . . . . 3 . . Miscellaneous . | . . . . . . . . . . . . . . . . . Route ------- -11/Scrapyard -10/Materials (discovered 4 exits: [*Mat x2] / [*Min] / [Sub]) -10/Mines (discovered 3 exits: [*Mat x2] / *Exi) -10/Exiles -9/Mines -8/Materials (discovered 3 exits: *Fac x3) -7/Factory -7/DSF -6/Factory -6/Lower Caves -6/Lower Caves (discovered 2 exits: *Fac / *Dat) -6/Data Miner -5/Proximity Caves -5/Factory (discovered 3 exits: Fac / *Upp x2) -5/Upper Caves -5/Upper Caves -5/Warlord History --------- Turn | Location | Event 29 | -11/Scrapyard | Discovered new exit (range 14) 99 | -11/Scrapyard | Entered Materials 206 | -10/Materials | Discovered new exit (range 8) 308 | -10/Materials | Build established: Mutant 710 | -10/Materials | Discovered new exit (range 11) 861 | -10/Materials | Discovered new exit (range 14) 1320 | -10/Materials | Discovered new exit (range 16) 1578 | -10/Materials | Entered Mines 1607 | -10/Mines | Received a Mining Laser from a helpful Derelict 1706 | -10/Mines | Discovered new exit (range 8) 1738 | -10/Mines | Discovered new exit (range 14) 1814 | -10/Mines | Learned location of Zion (-7) 2156 | -10/Mines | Discovered new exit (range 5) 2244 | -10/Mines | Deemed a non-threat by the Exiles lab entrance 2253 | -10/Mines | Entered Exiles 2253 | -10/Exiles | Accompanied by 2 allies 2283 | -10/Exiles | Led the pair of lost Derelicts to a safe place 2307 | -10/Exiles | Met 8R-AWN 2342 | -10/Exiles | Met EX-HEX 2406 | -10/Exiles | Met EX-BIN 2432 | -10/Exiles | Aligned with FarCom system 2434 | -10/Exiles | Given EX-Vault access code 2486 | -10/Exiles | Opened EX-Vault 2501 | -10/Exiles | Found Skeleton Box 2511 | -10/Exiles | Found 0b10 Alert Chip 2557 | -10/Exiles | Warned to stay clear of 0b10 Research branches 2578 | -10/Exiles | Exiles lab attacked by MAIN.C 2698 | -10/Exiles | Discovered new exit (range 12) 2768 | -10/Exiles | Left Exiles lab with 0b10 Alert Chip 2768 | -10/Exiles | Entered Mines 2803 | -9/Mines | A weapon hastily lodged in a ceiling crevice suddenly fell to the ground 2831 | -9/Mines | Found a damaged Exp. Sensor Array with a note attached 2835 | -9/Mines | Found Prototype Device 2835 | -9/Mines | Identified Exp. Sensor Array 3052 | -9/Mines | Assembled infested the area 3738 | -9/Mines | Learned 2 Materials zone layouts 3864 | -9/Mines | Discovered new exit (range 8) 3887 | -9/Mines | Entered Materials 3887 | -8/Materials | Evolved 4 slots: Propulsion x2, Utility x2 4101 | -8/Materials | Identified exit to Factory 4127 | -8/Materials | Build established: Scavenger-Mutant 5681 | -8/Materials | Lost 5 parts (1p3n1u) 5892 | -8/Materials | Build established: Mutant 6016 | -8/Materials | Lost 4 parts (3n1u) 6273 | -8/Materials | Build established: Scavenger-Mutant 6352 | -8/Materials | Entered Factory 6352 | -7/Factory | Evolved 2 slots: Weapon x2 6866 | -7/Factory | Identified exit to DSF 6866 | -7/Factory | Entered DSF 6892 | -7/DSF | Additional patrols routed to DSF 7052 | -7/DSF | Lost 11 parts (1p4n2u4w) 7124 | -7/DSF | Sterilization system engaged 7143 | -7/DSF | Discovered new exit (range 16) 7144 | -7/DSF | Ambient heat levels rising (+10) 7159 | -7/DSF | Ambient heat levels rising (+10) 7174 | -7/DSF | Ambient heat levels rising (+10) 7188 | -7/DSF | Entered Factory 7188 | -6/Factory | Evolved 2 slots: Utility x2 7358 | -6/Factory | Build established: Tank 8800 | -6/Factory | Discovered new exit (range 6) 8907 | -6/Factory | Identified exit to Lower Caves 8909 | -6/Factory | Entered Lower Caves 8938 | -6/Lower Caves | Met a Warlord Commander 8939 | -6/Lower Caves | Learned location of Warlord (-5) 8940 | -6/Lower Caves | Warlord Commander delivered Encrypted Comm Array 9607 | -6/Lower Caves | Spotted B-75 Beast 9629 | -6/Lower Caves | Destroyed B-75 Beast 9810 | -6/Lower Caves | Learned Factory interactive machine intel 10241 | -6/Lower Caves | Build established: Skirmisher 10870 | -6/Lower Caves | Discovered new exit (range 8) 10880 | -6/Lower Caves | Identified exit to Lower Caves 11021 | -6/Lower Caves | Entered another Lower Caves area 11074 | -6/Lower Caves | Encountered a Warlord checkpoint 11228 | -6/Lower Caves | Learned Factory stockpile data 11619 | -6/Lower Caves | Discovered new exit (range 13) 11641 | -6/Lower Caves | Identified exit to Factory 12352 | -6/Lower Caves | Discovered new exit (range 4) 12356 | -6/Lower Caves | Identified exit to Data Miner 12808 | -6/Lower Caves | Entered Data Miner 12808 | -6/Data Miner | Discovered new exit (range 6) 12816 | -6/Data Miner | Identified exit to Proximity Caves 12839 | -6/Data Miner | Met Data Miner 12866 | -6/Data Miner | Acquired the access code to Warlord's prototype stash 12866 | -6/Data Miner | Learned location of Section 7 (-2) 12892 | -6/Data Miner | Received God Mode back door access code from Data Miner 12928 | -6/Data Miner | Entered Proximity Caves 13171 | -5/Proximity Caves | Learned location of 1 exit from Factory 14014 | -5/Proximity Caves | Spotted B-75 Beast 14564 | -5/Proximity Caves | Learned Factory non-interactive machine intel 14602 | -5/Proximity Caves | Learned Factory terminal intel 14672 | -5/Proximity Caves | Discovered exit to Factory (range 7) 14680 | -5/Proximity Caves | Entered Factory 14680 | -5/Factory | Evolved 2 slots: Propulsion x1, Utility x1 14681 | -5/Factory | Identified exit to Factory 14683 | -5/Factory | Loaded intel: 220 non-interactive machine locations 14684 | -5/Factory | Loaded intel: 52 interactive machine locations 14685 | -5/Factory | Loaded intel: 26 terminal locations 15181 | -5/Factory | Build established: Hacker-Tank 15279 | -5/Factory | Discovered new exit (range 7) 15341 | -5/Factory | Identified exit to Upper Caves 15702 | -5/Factory | Fabricated Hvy. Armor Plating? 15731 | -5/Factory | Fabricated Hacking Suite (x1) 15830 | -5/Factory | Fabricated Hvy. Treads? 15980 | -5/Factory | Build established: Hacker-Skirmisher 16275 | -5/Factory | Entered Upper Caves 16576 | -5/Upper Caves | Lost 3 parts (2u1w) 16581 | -5/Upper Caves | Build established: Hacker-Tank 16653 | -5/Upper Caves | Learned Factory garrison access intel 16680 | -5/Upper Caves | Learned Factory stockpile data 17704 | -5/Upper Caves | Attracted the attention of an 0b10 checkpoint 17820 | -5/Upper Caves | Learned Factory machine intel 18324 | -5/Upper Caves | Spotted B-75 Beast 18344 | -5/Upper Caves | Destroyed B-75 Beast 18677 | -5/Upper Caves | Discovered new exit (range 9) 18693 | -5/Upper Caves | Entered another Upper Caves area 18721 | -5/Upper Caves | Learned Factory garrison access intel 18983 | -5/Upper Caves | Build established: Hacker-Gunner 19007 | -5/Upper Caves | Learned Factory non-interactive machine intel 19546 | -5/Upper Caves | Discovered new exit (range 8) 19966 | -5/Upper Caves | Build established: Derelict-Gunner 20232 | -5/Upper Caves | Entered Warlord 20293 | -5/Warlord | System corruption cleaned by Quarantine Array 20392 | -5/Warlord | Met Warlord 20407 | -5/Warlord | Opened Warlord's prototype stash 20415 | -5/Warlord | Found Prototype Device 20415 | -5/Warlord | Identified Exp. Focal Shield 20417 | -5/Warlord | Warlord's base attacked by MAIN.C 20419 | -5/Warlord | Found Prototype Processor 20419 | -5/Warlord | Identified Exp. Core Analyzer 20436 | -5/Warlord | Found Prototype Device 20436 | -5/Warlord | Identified Exp. Cloaking Device 20456 | -5/Warlord | Found Prototype Reactor 20464 | -5/Warlord | Found Prototype Hackware 20643 | -5/Warlord | Learned Research terminal intel 20643 | -5/Warlord | Learned Armory fabricator intel 20648 | -5/Warlord | Learned Armory stockpile data 20711 | -5/Warlord | Build established: Hacker-Gunner 20767 | -5/Warlord | Warlord forces counterattacked 20895 | -5/Warlord | Found Prototype Energy Cannon 20895 | -5/Warlord | Identified Vortex Cannon 20902 | -5/Warlord | Found Prototype Energy Gun 20902 | -5/Warlord | Identified Vortex Rail 20906 | -5/Warlord | Found Vortex Rail 21021 | -5/Warlord | Spotted Executioner 21092 | -5/Warlord | Warlord base infiltrated, sounded retreat 21099 | -5/Warlord | Crushed by falling debris 21235 | -5/Warlord | Found Prototype Special Weapon 21235 | -5/Warlord | Identified RU-N14's Throwing Claymores v3 21374 | -5/Warlord | Build established: Tank 21428 | -5/Warlord | Spotted Executioner 21430 | -5/Warlord | Spotted Executioner 21506 | -5/Warlord | Spotted Executioner 21536 | -5/Warlord | Spotted Executioner 21577 | -5/Warlord | System corruption reached 10% 21578 | -5/Warlord | Core integrity fell below 50% 21587 | -5/Warlord | Core integrity fell below 20% 21589 | -5/Warlord | Destroyed by X-72 Disruptor with Improved Arc Projector Last Messages --------------- 21566_ Acquired 11 matter. 21567_ Penetrated by Slug. 21567_ Imp. Medium Treads destroyed. 21568_ System corrupted: Energy discharge (-17). 21568_ Arm. Medium Treads destroyed. 21575_ The unstable cave ceiling collapses. 21576_ Imp. Medium Treads destroyed. 21576_ System corrupted by crushing effect (+5). 21581_ Adv. Cooling System destroyed. 21581_ Mak. System Shield severed. 21584_ Penetrated by Slug. 21584_ Slug penetrates L-41 Fighter. 21584_ Slug penetrates Earth. 21585_ System corrupted: Energy discharge (-31). 21585_ Exp. Core Analyzer destroyed. 21585_ System corrupted by crushing effect (+2). 21585_ Critical hit (Burn: +37). 21587_ G-50 Soldier IFF system glitched. 21587_ B-74 Champion suffers critical hit (Burn). 21587_ Penetrated by Slug. Map ----- +----------------------------------------------------+ | ##?????????????????????????????????? | | |#?????????????????????????????????? | | |#?????????????????????????????????? | | |#?????????????????????????????????? | | #?????????????????????????????????? | | ##?????????????????????????????????? | | ???????????????????????????????????? | | ???????????????????????????????????? | | ???????????????????????????????????? | | ???????????# ??????????????????????? | | ???????????? ?????????????????????? | | ????????????? ????????????????????? | | ?????????????? ???????????????????? | | ??????????????? ??????????????????? | | ??????????????? ??????????????????? | | ???????????????? ?????##??????????? | | ????????????????# ??### ?????##???? | | ????????????????? ?? ????? ###?? | | ?????????????????? ### ????? ##? | | ""????????????????? ##?? #? | | ""#?????????????????#g ;##? #? | | ""#?????????????????# ;## ### | | ""#?????????????????#; ;;; ; ? | | ""#??????????????##### E * ig "? | | ""#####???? ?????# [!bb ##% #? | | "" [ "###### ##### # @g=#[[[ #?? | | ""*=[ """" ####gblx #%[###? | | "%%= ""= "#?# ### g= g %[ " | | %![%= ### ###%gEgg d " | | %=%% % =%%E!dg ###? | | [=%% /;;== #??? | | =%!% ### # ### ##?? | | ""/*! """"" ""## # = #?# ;#?? | | ""[*! "" ### # [% ### #?? | | "" ["########## " #; # #?? | | ""#####??????# #% ;#" #?? | | ""#?????????????#### %!=#" #?? | | ""#?????????????## " " ##?? | | ""#????????????## " " #??? | | ""#????????????# " # ##" ##??? | | ""#????????????# =% "## "" #?? | | ?????????????# " ""### # "##?? | | ?????????????# ## " "#??#### #??? | | ?????????????##?##" "#????## #??? | | ????????????????#" ##??## ##?? | | ????????????????# #" # " #? | | ????????????##### ## """ = " #? | | ???????????## # #### #"*%= ###? | | ???????????# #?## "" #??? | | ???????????# ##?# "" ##??? | +----------------------------------------------------+ Best States ------------- Heat Dissipation 71 Coolant Potential 65 Energy Generation 21 Energy Capacity 325 Matter Stores 300 Matter Capacity 300 Sight Range 22 Robot Scan Range 20 Terrain Scan Density 10 Armor Coverage 1200 Weapon Cycling 20 Evasion (%) 40 Core Analysis 11 Recoil Reduction 5 Offensive Hacking 20 Defensive Hacking 11 Authchip Count 2 Item Schematics ----------------- Hacking Suite | -6/Factory | Scanalyzed Imp. Medium Armor Plating | -6/Factory | Scanalyzed Combat Drone Bay | -6/Data Miner | Free Lgt. Regenerative Plating | -6/Data Miner | Free Cld. Gravmag System | -6/Data Miner | Free Imp. Energy Well | -6/Data Miner | Free Ionic Axe | -6/Data Miner | Free Adv. Medium Treads | -6/Data Miner | Free Adv. Thermal Generator | -6/Data Miner | Free Railgun | -6/Data Miner | Free Imp. Force Booster | -6/Data Miner | Free Biometal Medium Treads | -6/Data Miner | Free Hvy. Treads | -5/Factory | Hacked Hvy. Armor Plating | -5/Factory | Hacked Robot Schematics ------------------ S-27 Virus | -6/Data Miner | Free M-22 Extractor | -6/Data Miner | Free E-15 Imp | -6/Data Miner | Free P-70 Sage | -6/Data Miner | Free G-50 Soldier | -6/Data Miner | Free Fabricated ------------ Hvy. Armor Plating | x1 | -5/Factory | Authchip Hacking Suite | x1 | -5/Factory | Authchip Hvy. Treads | x2 | -5/Factory Alien Tech Used ----------------- None Achievements -------------- None Challenges ------------ None Game ------ Seed HardenedRecyclingSegregator Manual? 0 Play Time 02:39:07 Cumulative 114.9 hours Start 2024.04.10 @ 06:34:33 End 2024.04.11 @ 15:11:00 Sessions 5 Manual Loads 0 Difficulty Rogue Special Mode None Game No. 60 Rogue 22 Adventurer 16 Explorer 22 Win Type - Total 19 Types 14/4/0/0/0/0/0/1/0 Lore% 69 Gallery% 73 Achievement% 68 Wizard Run 0 Options --------- Layout 0 ASCII 0 Keyboard 0 Movement Mouse Keybinds 0 Fullscreen 1 Font 24/Terminus Map View 76x50 Zoom Use 0% Tactical HUD 1 Map Filters NONE Filters NONE Steam 1 RUN: 70aab141-0da8-4d76-b3d2-ac2be6d017f9